[Event "*** Titled Tuesday Blitz"]
[Site "Chess.com"]
[Date "2020.10.27"]
[Round "5"]
[White "BogdanBelyakov89"]
[Black "Inga83"]
[Result "1-0"]
[WhiteElo "2586"]
[BlackElo "2401"]
[TimeControl "180+1"]
[EndTime "10:54:56 PDT"]
[Termination "BogdanBelyakov89 won by resignation"]

1. e4 {[%clk 0:02:58.9]} 1... c6 {[%clk 0:02:59.1]} 2. d4 {[%clk 0:02:58.6]}
2... d5 {[%clk 0:02:59.1]} 3. e5 {[%clk 0:02:59.5]} 3... Bf5 {[%clk 0:02:58.7]}
4. Nd2 {[%clk 0:02:59.8]} 4... e6 {[%clk 0:02:58.8]} 5. g4 {[%clk 0:03:00]} 5...
Bg6 {[%clk 0:02:58.7]} 6. Ne2 {[%clk 0:03:00.4]} 6... h6 {[%clk 0:02:52.4]} 7.
Nf4 {[%clk 0:03:00.3]} 7... Bh7 {[%clk 0:02:50.7]} 8. Bg2 {[%clk 0:03:00.1]}
8... Ne7 {[%clk 0:02:46.2]} 9. O-O {[%clk 0:02:59.2]} 9... c5 {[%clk 0:02:38.1]}
10. c4 {[%clk 0:02:58.6]} 10... cxd4 {[%clk 0:02:33.2]} 11. cxd5 {[%clk
0:02:58.5]} 11... Nxd5 {[%clk 0:02:31.1]} 12. Nxd5 {[%clk 0:02:53.3]} 12... exd5
{[%clk 0:02:30.4]} 13. Nb3 {[%clk 0:02:47.7]} 13... Nc6 {[%clk 0:02:28.3]} 14.
Nxd4 {[%clk 0:02:46.9]} 14... Be7 {[%clk 0:02:23.9]} 15. Bf4 {[%clk 0:02:28.2]}
15... O-O {[%clk 0:02:19.6]} 16. Nf5 {[%clk 0:02:28.4]} 16... Bg5 {[%clk
0:02:11.5]} 17. Bg3 {[%clk 0:02:26]} 17... d4 {[%clk 0:02:02.3]} 18. f4 {[%clk
0:02:19.3]} 18... Be7 {[%clk 0:02:00.9]} 19. Bxc6 {[%clk 0:02:18.5]} 19... bxc6
{[%clk 0:02:00.4]} 20. Nxe7+ {[%clk 0:02:18.6]} 20... Qxe7 {[%clk 0:02:00.4]}
21. f5 {[%clk 0:02:15.7]} 21... Rfd8 {[%clk 0:01:50.8]} 22. Qd2 {[%clk
0:02:11.9]} 22... c5 {[%clk 0:01:42]} 23. f6 {[%clk 0:02:10.9]} 23... Qe6 {[%clk
0:01:38.8]} 24. g5 {[%clk 0:02:00.8]} 24... h5 {[%clk 0:01:24.2]} 25. fxg7
{[%clk 0:02:00.4]} 25... Qg4 {[%clk 0:01:24]} 26. Rf4 {[%clk 0:01:54.7]} 26...
Qxg5 {[%clk 0:01:21.7]} 27. e6 {[%clk 0:01:47.4]} 27... Bg6 {[%clk 0:01:13.4]}
28. exf7+ {[%clk 0:01:29]} 28... Bxf7 {[%clk 0:01:12.3]} 29. Qf2 {[%clk
0:01:29]} 29... Rd7 {[%clk 0:01:05.7]} 30. Rf5 {[%clk 0:01:26.2]} 30... Qxg7
{[%clk 0:01:03.7]} 31. Qf4 {[%clk 0:01:24.6]} 31... Rf8 {[%clk 0:00:59.1]} 32.
Rf1 {[%clk 0:01:20.7]} 32... Re7 {[%clk 0:00:53.4]} 33. Rg5 {[%clk 0:01:14.4]}
33... Bg6 {[%clk 0:00:53.4]} 34. Qxf8+ {[%clk 0:01:10]} 34... Qxf8 {[%clk
0:00:52.7]} 35. Rxf8+ {[%clk 0:01:10.9]} 35... Kxf8 {[%clk 0:00:52.5]} 36. Bd6
{[%clk 0:01:10.9]} 36... Kf7 {[%clk 0:00:49.3]} 37. Bxe7 {[%clk 0:01:10.6]}
37... d3 {[%clk 0:00:49.5]} 38. Kf2 {[%clk 0:01:06.7]} 38... c4 {[%clk
0:00:47.4]} 39. Bb4 {[%clk 0:01:05.1]} 39... h4 {[%clk 0:00:43.8]} 40. Bc3
{[%clk 0:01:02.7]} 40... Be4 {[%clk 0:00:39.6]} 41. Ke3 {[%clk 0:01:02.4]} 41...
Bg6 {[%clk 0:00:38.1]} 42. a3 {[%clk 0:01:01.9]} 1-0

[Event "*** Titled Tuesday Blitz"]
[Site "Chess.com"]
[Date "2020.10.27"]
[Round "5"]
[White "picturesquecheck"]
[Black "Gabrielian_Artur"]
[Result "0-1"]
[WhiteElo "2083"]
[BlackElo "2774"]
[TimeControl "180+1"]
[EndTime "10:55:01 PDT"]
[Termination "Gabrielian_Artur won by resignation"]

1. e4 {[%clk 0:03:00.9]} 1... Nf6 {[%clk 0:02:59.5]} 2. e5 {[%clk 0:02:53.3]}
2... Nd5 {[%clk 0:02:59.4]} 3. d4 {[%clk 0:02:48.8]} 3... d6 {[%clk 0:02:59.3]}
4. Nf3 {[%clk 0:02:49.7]} 4... dxe5 {[%clk 0:02:58.7]} 5. Nxe5 {[%clk
0:02:50.6]} 5... c6 {[%clk 0:02:58.8]} 6. Bc4 {[%clk 0:02:50.6]} 6... Be6 {[%clk
0:02:54.9]} 7. O-O {[%clk 0:02:49.9]} 7... g6 {[%clk 0:02:54.8]} 8. Re1 {[%clk
0:02:49.1]} 8... Bg7 {[%clk 0:02:54.6]} 9. Bb3 {[%clk 0:02:44.5]} 9... O-O
{[%clk 0:02:53.6]} 10. Nd2 {[%clk 0:02:32.2]} 10... a5 {[%clk 0:02:46.5]} 11. a4
{[%clk 0:02:30.9]} 11... Nd7 {[%clk 0:02:44.5]} 12. Ndf3 {[%clk 0:02:28.7]}
12... Nxe5 {[%clk 0:02:41.6]} 13. dxe5 {[%clk 0:02:27.3]} 13... Nc7 {[%clk
0:02:38.1]} 14. Bg5 {[%clk 0:02:20.8]} 14... Re8 {[%clk 0:02:34.4]} 15. Nd4
{[%clk 0:02:09.4]} 15... Bxb3 {[%clk 0:02:31.9]} 16. Nxb3 {[%clk 0:02:07.4]}
16... Ne6 {[%clk 0:02:30.1]} 17. Bh4 {[%clk 0:02:03.8]} 17... Qc7 {[%clk
0:02:29.9]} 18. Bg3 {[%clk 0:02:02.4]} 18... Rad8 {[%clk 0:02:28.8]} 19. Qe2
{[%clk 0:02:02.3]} 19... Rd5 {[%clk 0:02:28.2]} 20. Rad1 {[%clk 0:02:00.5]}
20... Red8 {[%clk 0:02:27.6]} 21. Rxd5 {[%clk 0:02:00.3]} 21... Rxd5 {[%clk
0:02:27.7]} 22. c4 {[%clk 0:01:57]} 22... Rd7 {[%clk 0:02:19.5]} 23. f4 {[%clk
0:01:55.4]} 23... Qb6+ {[%clk 0:02:10.1]} 24. Qe3 {[%clk 0:01:55.4]} 24... Qb4
{[%clk 0:02:08.9]} 25. Bf2 {[%clk 0:01:44.7]} 25... Qxc4 {[%clk 0:01:49]} 26. g3
{[%clk 0:01:32.3]} 26... Qxa4 {[%clk 0:01:47.9]} 27. Ra1 {[%clk 0:01:25.8]}
27... Qb4 {[%clk 0:01:43.4]} 28. Rxa5 {[%clk 0:01:23.2]} 28... Rd8 {[%clk
0:01:37.8]} 29. Qb6 {[%clk 0:01:15]} 29... Rd1+ {[%clk 0:01:24]} 30. Kg2 {[%clk
0:01:06.2]} 30... Qe4+ {[%clk 0:01:23.8]} 31. Kh3 {[%clk 0:01:05]} 31... h5
{[%clk 0:01:11]} 32. Ra8+ {[%clk 0:01:02.8]} 32... Kh7 {[%clk 0:01:10.4]} 33.
Nc5 {[%clk 0:00:43.1]} 33... Qf5+ {[%clk 0:00:58.2]} 34. Kg2 {[%clk 0:00:41.2]}
34... Nxf4+ {[%clk 0:00:57.6]} 35. gxf4 {[%clk 0:00:37.9]} 35... Qg4+ {[%clk
0:00:57.1]} 36. Bg3 {[%clk 0:00:35]} 36... Rd2+ {[%clk 0:00:56.9]} 37. Kf1
{[%clk 0:00:29.2]} 37... Qe2+ {[%clk 0:00:55.4]} 0-1

[Event "*** Titled Tuesday Blitz"]
[Site "Chess.com"]
[Date "2020.10.27"]
[Round "5"]
[White "LyonBeast"]
[Black "nurgyulsalimova"]
[Result "1-0"]
[WhiteElo "3039"]
[BlackElo "2719"]
[TimeControl "180+1"]
[EndTime "10:55:04 PDT"]
[Termination "LyonBeast won by resignation"]

1. b3 {[%clk 0:03:00.9]} 1... d5 {[%clk 0:02:59.3]} 2. Bb2 {[%clk 0:02:57.7]}
2... Nf6 {[%clk 0:02:59.5]} 3. Nf3 {[%clk 0:02:51.2]} 3... e6 {[%clk 0:02:59.5]}
4. g3 {[%clk 0:02:50.9]} 4... Be7 {[%clk 0:02:59.5]} 5. Bg2 {[%clk 0:02:51.4]}
5... O-O {[%clk 0:02:59.7]} 6. O-O {[%clk 0:02:52.1]} 6... b6 {[%clk 0:02:59.7]}
7. e3 {[%clk 0:02:52.4]} 7... Bb7 {[%clk 0:02:59.7]} 8. d3 {[%clk 0:02:52.9]}
8... c5 {[%clk 0:02:58.8]} 9. Nbd2 {[%clk 0:02:53.5]} 9... Nc6 {[%clk
0:02:51.6]} 10. Qe2 {[%clk 0:02:44]} 10... Qc7 {[%clk 0:02:50.7]} 11. c4 {[%clk
0:02:40.4]} 11... Rfd8 {[%clk 0:02:44.4]} 12. Rfd1 {[%clk 0:02:38.1]} 12... a5
{[%clk 0:02:32.5]} 13. a4 {[%clk 0:02:35.5]} 13... Nb4 {[%clk 0:02:18.5]} 14.
Rac1 {[%clk 0:02:33.2]} 14... dxc4 {[%clk 0:02:00.1]} 15. Nxc4 {[%clk
0:02:31.6]} 15... Bd5 {[%clk 0:01:35.4]} 16. Nfe5 {[%clk 0:02:27.5]} 16... Bxg2
{[%clk 0:01:30.9]} 17. Kxg2 {[%clk 0:02:28.4]} 17... Qb7+ {[%clk 0:01:11.3]} 18.
Qf3 {[%clk 0:02:27.3]} 18... Qxf3+ {[%clk 0:01:10.9]} 19. Kxf3 {[%clk
0:02:28.2]} 19... Rab8 {[%clk 0:00:50.2]} 20. Ke2 {[%clk 0:02:26.1]} 20... Rb7
{[%clk 0:00:48.7]} 21. d4 {[%clk 0:02:16.4]} 21... Ne8 {[%clk 0:00:19.8]} 22.
dxc5 {[%clk 0:02:14.6]} 22... Rxd1 {[%clk 0:00:17.8]} 23. Rxd1 {[%clk
0:02:15.5]} 23... Bxc5 {[%clk 0:00:13.8]} 24. Rd8 {[%clk 0:02:09.4]} 24... Kf8
{[%clk 0:00:14]} 25. Rd7 {[%clk 0:02:09.5]} 25... Rxd7 {[%clk 0:00:12]} 26.
Nxd7+ {[%clk 0:02:10.4]} 26... Ke7 {[%clk 0:00:12.6]} 27. Nxc5 {[%clk
0:02:11.2]} 27... bxc5 {[%clk 0:00:12.6]} 28. Nxa5 {[%clk 0:02:12.1]} 28... f6
{[%clk 0:00:12.5]} 29. Nc4 {[%clk 0:02:12.2]} 29... Nc7 {[%clk 0:00:12.9]} 30.
Ba3 {[%clk 0:02:11.1]} 30... Nba6 {[%clk 0:00:11.6]} 31. e4 {[%clk 0:02:08.9]}
31... e5 {[%clk 0:00:09]} 32. Ne3 {[%clk 0:02:06.2]} 32... Ne6 {[%clk
0:00:08.1]} 33. Kd3 {[%clk 0:02:05.7]} 33... Kd7 {[%clk 0:00:07.6]} 34. Kc4
{[%clk 0:02:02.2]} 34... Kc6 {[%clk 0:00:08]} 35. Nf5 {[%clk 0:02:00.1]} 35...
g6 {[%clk 0:00:07.4]} 36. Ne7+ {[%clk 0:02:00.4]} 36... Kd6 {[%clk 0:00:06.6]}
37. Nd5 {[%clk 0:02:01]} 37... f5 {[%clk 0:00:07]} 38. b4 {[%clk 0:01:56.2]}
38... fxe4 {[%clk 0:00:04.8]} 39. b5 {[%clk 0:01:54.2]} 39... Nb8 {[%clk
0:00:04.2]} 40. Nf6 {[%clk 0:01:49.5]} 40... Nd4 {[%clk 0:00:02.8]} 41. Nxe4+
{[%clk 0:01:48.7]} 41... Kc7 {[%clk 0:00:03.2]} 42. Bxc5 {[%clk 0:01:49.3]}
42... Nf3 {[%clk 0:00:03.1]} 43. Bd6+ {[%clk 0:01:49.3]} 43... Kb7 {[%clk
0:00:03.6]} 44. Bxb8 {[%clk 0:01:50.2]} 44... Kxb8 {[%clk 0:00:04.3]} 45. a5
{[%clk 0:01:50.5]} 45... Nd4 {[%clk 0:00:04.2]} 46. b6 {[%clk 0:01:50.9]} 46...
Kb7 {[%clk 0:00:04.6]} 47. Nc5+ {[%clk 0:01:51.5]} 47... Kc6 {[%clk 0:00:04.6]}
48. Nd3 {[%clk 0:01:51.6]} 48... Ne6 {[%clk 0:00:04]} 49. Nxe5+ {[%clk
0:01:49.8]} 49... Kb7 {[%clk 0:00:04]} 50. Nd3 {[%clk 0:01:49.2]} 50... Ka6
{[%clk 0:00:03.7]} 51. Nc5+ {[%clk 0:01:48.1]} 1-0

[Event "*** Titled Tuesday Blitz"]
[Site "Chess.com"]
[Date "2020.10.27"]
[Round "5"]
[White "Gerodot71"]
[Black "Ermito2020"]
[Result "0-1"]
[WhiteElo "2485"]
[BlackElo "2653"]
[TimeControl "180+1"]
[EndTime "10:55:04 PDT"]
[Termination "Ermito2020 won by resignation"]

1. d4 {[%clk 0:03:00.9]} 1... e6 {[%clk 0:02:59.3]} 2. c4 {[%clk 0:03:00.6]}
2... f5 {[%clk 0:02:58]} 3. Nf3 {[%clk 0:02:57]} 3... Nf6 {[%clk 0:02:57.3]} 4.
g3 {[%clk 0:02:57.1]} 4... Be7 {[%clk 0:02:57.1]} 5. Bg2 {[%clk 0:02:57]} 5...
O-O {[%clk 0:02:57.7]} 6. O-O {[%clk 0:02:57.2]} 6... d5 {[%clk 0:02:58.2]} 7.
b3 {[%clk 0:02:55.4]} 7... c6 {[%clk 0:02:57.3]} 8. Ba3 {[%clk 0:02:50.2]} 8...
Ne4 {[%clk 0:02:56.8]} 9. Bxe7 {[%clk 0:02:48]} 9... Qxe7 {[%clk 0:02:57.7]} 10.
Qc2 {[%clk 0:02:48.3]} 10... Bd7 {[%clk 0:02:45.8]} 11. Ne5 {[%clk 0:02:43.9]}
11... Be8 {[%clk 0:02:45.7]} 12. Nd2 {[%clk 0:02:42.9]} 12... Nd7 {[%clk
0:02:44.7]} 13. Nd3 {[%clk 0:02:40.1]} 13... Bh5 {[%clk 0:02:39.6]} 14. e3
{[%clk 0:02:38.7]} 14... Be2 {[%clk 0:02:36.9]} 15. Rfe1 {[%clk 0:02:32]} 15...
Bxd3 {[%clk 0:02:37.1]} 16. Qxd3 {[%clk 0:02:32.9]} 16... Nxd2 {[%clk 0:02:37]}
17. Qxd2 {[%clk 0:02:32.7]} 17... Nf6 {[%clk 0:02:36.5]} 18. f3 {[%clk
0:02:23.2]} 18... Rad8 {[%clk 0:02:26.5]} 19. c5 {[%clk 0:02:09.8]} 19... e5
{[%clk 0:02:24.9]} 20. b4 {[%clk 0:02:08.5]} 20... Rde8 {[%clk 0:02:21.6]} 21.
a4 {[%clk 0:02:06.4]} 21... Qd7 {[%clk 0:01:59.2]} 22. Rab1 {[%clk 0:01:59.3]}
22... a6 {[%clk 0:01:58.7]} 23. Bf1 {[%clk 0:01:57.4]} 23... g5 {[%clk 0:01:51]}
24. b5 {[%clk 0:01:50.5]} 24... axb5 {[%clk 0:01:50.8]} 25. axb5 {[%clk
0:01:50.4]} 25... g4 {[%clk 0:01:51.7]} 26. f4 {[%clk 0:01:37.1]} 26... Ne4
{[%clk 0:01:50.2]} 27. Qb2 {[%clk 0:01:34.3]} 27... exf4 {[%clk 0:01:50.1]} 28.
exf4 {[%clk 0:01:33.9]} 28... Rf7 {[%clk 0:01:49.7]} 29. Ra1 {[%clk 0:01:30.4]}
29... h5 {[%clk 0:01:48.7]} 30. Ra7 {[%clk 0:01:26.7]} 30... Qe6 {[%clk
0:01:44.8]} 31. bxc6 {[%clk 0:01:18.8]} 31... bxc6 {[%clk 0:01:44.7]} 32. Rea1
{[%clk 0:01:19.1]} 32... h4 {[%clk 0:01:38.6]} 33. Qg2 {[%clk 0:00:52.3]} 33...
h3 {[%clk 0:01:29.3]} 34. Qc2 {[%clk 0:00:50.4]} 34... Qf6 {[%clk 0:01:23.8]}
35. Qb2 {[%clk 0:00:47.9]} 35... Nxc5 {[%clk 0:01:18.2]} 36. Rxf7 {[%clk
0:00:42.5]} 36... Kxf7 {[%clk 0:01:19.1]} 37. Ra7+ {[%clk 0:00:37.6]} 37... Kg6
{[%clk 0:01:18.8]} 38. Qd2 {[%clk 0:00:22.1]} 38... Nb3 {[%clk 0:01:14.9]} 39.
Qd1 {[%clk 0:00:19.1]} 39... Qxd4+ {[%clk 0:01:10.2]} 40. Qxd4 {[%clk
0:00:19.5]} 40... Nxd4 {[%clk 0:01:11]} 41. Ra4 {[%clk 0:00:19.7]} 41... Re4
{[%clk 0:01:08.9]} 42. Bd3 {[%clk 0:00:19.1]} 42... Nf3+ {[%clk 0:01:08.5]} 0-1

[Event "*** Titled Tuesday Blitz"]
[Site "Chess.com"]
[Date "2020.10.27"]
[Round "5"]
[White "jamalm2"]
[Black "Resignify"]
[Result "0-1"]
[WhiteElo "1940"]
[BlackElo "2201"]
[TimeControl "180+1"]
[EndTime "10:55:04 PDT"]
[Termination "Resignify won on time"]

1. g3 {[%clk 0:00:56.4]} 1... Nf6 {[%clk 0:02:33.6]} 2. Bg2 {[%clk 0:00:52.4]}
2... g6 {[%clk 0:02:33.6]} 3. c4 {[%clk 0:00:50.7]} 3... Bg7 {[%clk 0:02:33.8]}
4. Nf3 {[%clk 0:00:50.1]} 4... O-O {[%clk 0:02:33.7]} 5. O-O {[%clk 0:00:50.1]}
5... d6 {[%clk 0:02:34.2]} 6. d4 {[%clk 0:00:49.7]} 6... Nbd7 {[%clk 0:02:33.5]}
7. b3 {[%clk 0:00:49]} 7... c5 {[%clk 0:02:28.7]} 8. Bb2 {[%clk 0:00:47.7]} 8...
Rb8 {[%clk 0:02:26.3]} 9. Nbd2 {[%clk 0:00:43.6]} 9... a6 {[%clk 0:02:25.8]} 10.
e4 {[%clk 0:00:41.5]} 10... Ne8 {[%clk 0:02:16.8]} 11. Qe2 {[%clk 0:00:35.8]}
11... b5 {[%clk 0:02:06]} 12. cxb5 {[%clk 0:00:32.1]} 12... axb5 {[%clk
0:02:04.6]} 13. Rfd1 {[%clk 0:00:25.7]} 13... Nc7 {[%clk 0:01:54.5]} 14. Nf1
{[%clk 0:00:24.8]} 14... b4 {[%clk 0:01:49.3]} 15. Rac1 {[%clk 0:00:23.5]} 15...
Ba6 {[%clk 0:01:45.9]} 16. Qe3 {[%clk 0:00:19.5]} 16... Nb5 {[%clk 0:01:31]} 17.
Rc2 {[%clk 0:00:15.6]} 17... Qc7 {[%clk 0:01:17.2]} 18. dxc5 {[%clk 0:00:11.9]}
18... Bxb2 {[%clk 0:01:17.1]} 19. Rxb2 {[%clk 0:00:10.9]} 19... Qxc5 {[%clk
0:01:09.8]} 20. Rc1 {[%clk 0:00:10]} 20... Qb6 {[%clk 0:00:57.7]} 21. Rd2 {[%clk
0:00:03.6]} 21... Nc3 {[%clk 0:00:50.6]} 22. a4 {[%clk 0:00:01.7]} 22... Rfc8
{[%clk 0:00:46.9]} 0-1

[Event "*** Titled Tuesday Blitz"]
[Site "Chess.com"]
[Date "2020.10.27"]
[Round "5"]
[White "Joshukid"]
[Black "exoticprincess"]
[Result "0-1"]
[WhiteElo "2703"]
[BlackElo "2862"]
[TimeControl "180+1"]
[EndTime "10:55:07 PDT"]
[Termination "exoticprincess won by resignation"]

1. Nf3 {[%clk 0:02:57.1]} 1... d5 {[%clk 0:02:59.5]} 2. c4 {[%clk 0:02:57.6]}
2... c6 {[%clk 0:02:59.3]} 3. g3 {[%clk 0:02:55.4]} 3... Nf6 {[%clk 0:02:57.5]}
4. Bg2 {[%clk 0:02:55.9]} 4... Bg4 {[%clk 0:02:56.9]} 5. O-O {[%clk 0:02:53.7]}
5... e6 {[%clk 0:02:56.9]} 6. Qb3 {[%clk 0:02:54]} 6... Qb6 {[%clk 0:02:51.3]}
7. d3 {[%clk 0:02:48.3]} 7... Nbd7 {[%clk 0:02:49.3]} 8. Nc3 {[%clk 0:02:46.6]}
8... Bxf3 {[%clk 0:02:43.8]} 9. Bxf3 {[%clk 0:02:45.6]} 9... Qxb3 {[%clk
0:02:43.6]} 10. axb3 {[%clk 0:02:45.8]} 10... a6 {[%clk 0:02:43.7]} 11. Be3
{[%clk 0:02:39.5]} 11... Bd6 {[%clk 0:02:35.4]} 12. h3 {[%clk 0:02:37.5]} 12...
h5 {[%clk 0:02:32.1]} 13. h4 {[%clk 0:02:30.9]} 13... Ne5 {[%clk 0:02:22.8]} 14.
Bg2 {[%clk 0:02:24.9]} 14... Neg4 {[%clk 0:02:21]} 15. Bd2 {[%clk 0:02:16.1]}
15... O-O {[%clk 0:02:20.4]} 16. d4 {[%clk 0:02:13.5]} 16... Rfd8 {[%clk
0:02:13.8]} 17. c5 {[%clk 0:02:08.5]} 17... Bc7 {[%clk 0:02:13]} 18. f3 {[%clk
0:02:08.6]} 18... Nh6 {[%clk 0:02:12]} 19. Bxh6 {[%clk 0:02:09.3]} 19... gxh6
{[%clk 0:02:12]} 20. f4 {[%clk 0:02:10]} 20... Kf8 {[%clk 0:02:07.3]} 21. Bf3
{[%clk 0:02:02.9]} 21... Ke7 {[%clk 0:02:06.8]} 22. e3 {[%clk 0:02:03.4]} 22...
Ng4 {[%clk 0:02:03.7]} 23. Bxg4 {[%clk 0:02:01.2]} 23... hxg4 {[%clk 0:02:03.8]}
24. Kf2 {[%clk 0:01:58.1]} 24... Rdb8 {[%clk 0:01:57.3]} 25. Ra2 {[%clk
0:01:51.3]} 25... b6 {[%clk 0:01:50.9]} 26. b4 {[%clk 0:01:51.5]} 26... bxc5
{[%clk 0:01:38.6]} 27. bxc5 {[%clk 0:01:52.4]} 27... Rb3 {[%clk 0:01:35.9]} 28.
Rfa1 {[%clk 0:01:43.2]} 28... a5 {[%clk 0:01:35.7]} 29. Ke2 {[%clk 0:01:41.2]}
29... Rab8 {[%clk 0:01:34.9]} 30. Nd1 {[%clk 0:01:31.7]} 30... f6 {[%clk
0:01:33.9]} 31. Ra3 {[%clk 0:01:29.9]} 31... R3b5 {[%clk 0:01:30.4]} 32. Kd2
{[%clk 0:01:21.3]} 32... e5 {[%clk 0:01:30.3]} 33. Kc2 {[%clk 0:01:21.9]} 33...
Ke6 {[%clk 0:01:27.8]} 34. R1a2 {[%clk 0:01:18.6]} 34... Kf5 {[%clk 0:01:22.3]}
35. Ra4 {[%clk 0:01:08.3]} 35... Rb4 {[%clk 0:01:17.2]} 36. Nf2 {[%clk
0:00:59.8]} 36... h5 {[%clk 0:01:14.1]} 37. Kc3 {[%clk 0:00:51.6]} 37... Rb3+
{[%clk 0:01:13]} 38. Kd2 {[%clk 0:00:38.9]} 38... Rxb2+ {[%clk 0:01:13.1]} 39.
Rxb2 {[%clk 0:00:38.4]} 39... Rxb2+ {[%clk 0:01:14]} 40. Ke1 {[%clk 0:00:39.1]}
40... exd4 {[%clk 0:01:13.8]} 41. exd4 {[%clk 0:00:37.9]} 41... Rb3 {[%clk
0:01:12.3]} 0-1

[Event "*** Titled Tuesday Blitz"]
[Site "Chess.com"]
[Date "2020.10.27"]
[Round "5"]
[White "UCantHandleDenker"]
[Black "mr65"]
[Result "1-0"]
[WhiteElo "2508"]
[BlackElo "2206"]
[TimeControl "180+1"]
[EndTime "10:55:15 PDT"]
[Termination "UCantHandleDenker won by resignation"]

1. Nf3 {[%clk 0:03:00.3]} 1... Nf6 {[%clk 0:02:59]} 2. g3 {[%clk 0:03:00.7]}
2... g6 {[%clk 0:02:58.9]} 3. Bg2 {[%clk 0:03:00.9]} 3... Bg7 {[%clk 0:02:59]}
4. O-O {[%clk 0:03:01.4]} 4... O-O {[%clk 0:02:58.7]} 5. d3 {[%clk 0:03:00.8]}
5... d6 {[%clk 0:02:58.6]} 6. Nbd2 {[%clk 0:03:00.8]} 6... e5 {[%clk 0:02:57.6]}
7. e4 {[%clk 0:03:01.2]} 7... Nc6 {[%clk 0:02:56]} 8. c3 {[%clk 0:03:01.2]} 8...
Be6 {[%clk 0:02:53.9]} 9. b4 {[%clk 0:02:59.7]} 9... a6 {[%clk 0:02:52.9]} 10.
a4 {[%clk 0:02:59.1]} 10... Qd7 {[%clk 0:02:52.6]} 11. Ng5 {[%clk 0:02:55.9]}
11... Nh5 {[%clk 0:02:37.9]} 12. Nxe6 {[%clk 0:02:54.1]} 12... Qxe6 {[%clk
0:02:36.9]} 13. Bb2 {[%clk 0:02:50.8]} 13... Rae8 {[%clk 0:02:24.1]} 14. b5
{[%clk 0:02:49.1]} 14... axb5 {[%clk 0:02:23.3]} 15. axb5 {[%clk 0:02:49.2]}
15... Nd8 {[%clk 0:02:22.6]} 16. Ra7 {[%clk 0:02:46.4]} 16... Bh6 {[%clk
0:02:16.8]} 17. Nc4 {[%clk 0:02:40.5]} 17... Ng7 {[%clk 0:02:06.6]} 18. Na5
{[%clk 0:02:29.5]} 18... f5 {[%clk 0:02:05.5]} 19. Nxb7 {[%clk 0:02:23.2]} 19...
Nxb7 {[%clk 0:02:04.2]} 20. Rxb7 {[%clk 0:02:23.4]} 20... f4 {[%clk 0:02:00.1]}
21. Rxc7 {[%clk 0:02:19.2]} 21... g5 {[%clk 0:01:51.9]} 22. Bf3 {[%clk
0:02:14.2]} 22... Qf6 {[%clk 0:01:42.4]} 23. Bg4 {[%clk 0:02:08.5]} 23... Ne6
{[%clk 0:01:40.3]} 24. Bxe6+ {[%clk 0:02:03.8]} 24... Qxe6 {[%clk 0:01:39.6]}
25. Qh5 {[%clk 0:01:54.4]} 25... fxg3 {[%clk 0:01:29.8]} 26. hxg3 {[%clk
0:01:53]} 26... g4 {[%clk 0:01:21]} 27. Ra1 {[%clk 0:01:47.9]} 27... Qf6 {[%clk
0:00:58]} 28. Qxg4+ {[%clk 0:01:40]} 28... Kh8 {[%clk 0:00:57.4]} 29. Rf1 {[%clk
0:01:40.4]} 29... Be3 {[%clk 0:00:48.5]} 30. Kg2 {[%clk 0:01:17.9]} 30... Bb6
{[%clk 0:00:33.5]} 31. Rb7 {[%clk 0:01:14.8]} 31... Bc5 {[%clk 0:00:28.5]} 32.
d4 {[%clk 0:01:08.3]} 32... exd4 {[%clk 0:00:27.1]} 33. cxd4 {[%clk 0:01:08.8]}
33... Bxd4 {[%clk 0:00:21.4]} 34. Qh5 {[%clk 0:01:08.7]} 34... Qg6 {[%clk
0:00:04.8]} 35. Bxd4+ {[%clk 0:01:06.4]} 35... Kg8 {[%clk 0:00:04.1]} 36. Qxg6+
{[%clk 0:01:03.3]} 1-0

[Event "*** Titled Tuesday Blitz"]
[Site "Chess.com"]
[Date "2020.10.27"]
[Round "5"]
[White "Yashasd1995"]
[Black "SergeyShtyka"]
[Result "1-0"]
[WhiteElo "2540"]
[BlackElo "2326"]
[TimeControl "180+1"]
[EndTime "10:55:18 PDT"]
[Termination "Yashasd1995 won by resignation"]

1. b3 {[%clk 0:03:00.9]} 1... c5 {[%clk 0:03:00]} 2. Bb2 {[%clk 0:03:01.8]} 2...
d5 {[%clk 0:02:58.9]} 3. e3 {[%clk 0:03:01.6]} 3... Nc6 {[%clk 0:02:58.7]} 4. f4
{[%clk 0:03:01.1]} 4... Nf6 {[%clk 0:02:57.5]} 5. Bb5 {[%clk 0:03:00.6]} 5...
Bd7 {[%clk 0:02:55.8]} 6. Nf3 {[%clk 0:03:00.6]} 6... a6 {[%clk 0:02:55.1]} 7.
Bxc6 {[%clk 0:03:00.1]} 7... Bxc6 {[%clk 0:02:55.5]} 8. O-O {[%clk 0:02:59.7]}
8... e6 {[%clk 0:02:54.1]} 9. Ne5 {[%clk 0:03:00.1]} 9... Qc7 {[%clk 0:02:50.7]}
10. d3 {[%clk 0:02:59.9]} 10... Be7 {[%clk 0:02:48.2]} 11. Nd2 {[%clk
0:02:59.4]} 11... O-O {[%clk 0:02:47.8]} 12. Qe1 {[%clk 0:02:57.3]} 12... Be8
{[%clk 0:02:39.8]} 13. g4 {[%clk 0:02:56]} 13... Nd7 {[%clk 0:02:38.4]} 14. g5
{[%clk 0:02:54.5]} 14... Nxe5 {[%clk 0:02:30]} 15. Bxe5 {[%clk 0:02:55.4]} 15...
Bd6 {[%clk 0:02:29.3]} 16. Nf3 {[%clk 0:02:46.1]} 16... f6 {[%clk 0:02:27.9]}
17. Bxd6 {[%clk 0:02:44.2]} 17... Qxd6 {[%clk 0:02:28.8]} 18. Qg3 {[%clk
0:02:41.8]} 18... Kh8 {[%clk 0:02:26.8]} 19. Rf2 {[%clk 0:02:28.4]} 19... Bh5
{[%clk 0:01:48.5]} 20. Nh4 {[%clk 0:02:27.2]} 20... Qe7 {[%clk 0:01:38.1]} 21.
Raf1 {[%clk 0:02:18.2]} 21... fxg5 {[%clk 0:01:35.5]} 22. fxg5 {[%clk
0:02:17.6]} 22... Kg8 {[%clk 0:01:27.3]} 23. Ng2 {[%clk 0:02:14.1]} 23... e5
{[%clk 0:01:22.5]} 24. Nh4 {[%clk 0:01:59.8]} 24... Bg6 {[%clk 0:01:12.3]} 25.
Rxf8+ {[%clk 0:01:50.6]} 25... Rxf8 {[%clk 0:01:11.1]} 26. Rxf8+ {[%clk
0:01:50.7]} 26... Kxf8 {[%clk 0:01:08.5]} 27. Qf3+ {[%clk 0:01:50.5]} 27... Qf7
{[%clk 0:01:01.8]} 28. Qg4 {[%clk 0:01:50.3]} 28... Qe7 {[%clk 0:00:45.8]} 29.
Nf3 {[%clk 0:01:14.1]} 29... e4 {[%clk 0:00:37.6]} 30. Qf4+ {[%clk 0:01:06.3]}
30... Ke8 {[%clk 0:00:30.7]} 31. Ne5 {[%clk 0:01:00.6]} 31... exd3 {[%clk
0:00:27.7]} 32. cxd3 {[%clk 0:01:01.5]} 32... b5 {[%clk 0:00:19.9]} 33. h4
{[%clk 0:01:01.3]} 33... c4 {[%clk 0:00:16.3]} 34. dxc4 {[%clk 0:00:59.2]} 34...
dxc4 {[%clk 0:00:16.6]} 35. bxc4 {[%clk 0:00:58.9]} 35... bxc4 {[%clk
0:00:16.1]} 36. Nxc4 {[%clk 0:00:58.5]} 36... Qb4 {[%clk 0:00:15.5]} 37. Nd6+
{[%clk 0:00:51.6]} 1-0